[Event "44th Chess Olympiad Open 2022"]
[Site "Chennai"]
[Date "2022.08.06"]
[Round "8.13"]
[White "Stefansson, Hannes"]
[Black "Ivic, Velimir"]
[Result "1/2-1/2"]
[WhiteElo "2541"]
[BlackElo "2581"]
[Annotator "TA"]
[PlyCount "103"]
[EventDate "2022.??.??"]
[TimeControl "60"]

{[%evp 10,103,13,21,41,20,13,10,0,0,0,15,14,11,13,0,18,0,0,-15,0,0,-6,-11,0,-8,
14,15,16,19,17,0,26,0,14,0,0,0,0,0,0,0,0,0,0,0,0,0,0,-7,0,-16,-11,-18,0,-8,0,
-23,-14,-17,-16,-25,0,0,0,0,0,-7,0,-6,0,0,0,-12,0,0,0,-12,-7,-16,-16,-14,-17,
-15,-12,-14,-8,-8,-8,-8,-8,-8,0,0,0,0]} 1. e4 {[%emt 0:00:09]} c5 {[%emt 0:00:
00]} 2. Nf3 {[%emt 0:00:14]} Nc6 {[%emt 0:00:12]} 3. Bb5 {[%emt 0:00:37]} g6 {
[%emt 0:00:58]} 4. Bxc6 {[%emt 0:00:33]} bxc6 {[%emt 0:00:19]} 5. O-O {[%emt 0:
00:00]} Bg7 {[%emt 0:00:10]} 6. Re1 {[%emt 0:01:05]} Qc7 {[%emt 0:00:44] B31:
Sicilian: 2...Nc6 3 Bb5 g6.} 7. h3 {[%emt 0:06:14]} d6 {[%emt 0:00:47]} 8. c3 {
[%emt 0:13:05]} Nf6 {[%emt 0:00:20]} 9. d4 {[%emt 0:04:39]} cxd4 {[%emt 0:00:
00]} 10. cxd4 {[%emt 0:00:21]} O-O {[%emt 0:00:06]} 11. Nc3 {[%emt 0:02:54]} c5
{[%emt 0:00:51]} 12. e5 {[%emt 0:28:54]} dxe5 {[%emt 0:00:44]} 13. dxe5 {
[%emt 0:00:09]} Rd8 {[%emt 0:00:09]} 14. Qe2 {[%emt 0:03:28]} Nd5 {[%emt 0:00:
00]} 15. Nxd5 {[%emt 0:03:32]} Rxd5 {[%emt 0:00:07]} 16. Bf4 {[%emt 0:02:56] 
[#]} Bf5 $146 {[%emt 0:06:57]} ({Predecessor:} 16... Bb7 17. Rac1 Qb6 18. Rc3
Rad8 19. Rb3 Qc6 20. Qb5 Qxb5 21. Rxb5 R8d7 22. e6 fxe6 {½-½ (32) Ghukasyan,
S (2168)-Buksa,N (2409) Sitges 2021}) 17. Rad1 {[%emt 0:01:58]} Qb7 {[%emt 0:
00:00]} 18. Rxd5 {[%emt 0:01:56]} Qxd5 {[%emt 0:00:04]} 19. b3 {[%emt 0:00:43]}
Rd8 {[%emt 0:02:06]} 20. Qe3 {[%emt 0:04:46]} a5 {[%emt 0:09:06]} 21. Rc1 {
[%emt 0:01:28]} (21. Bg5 $5 {[%cal Rg5e7]}) 21... Rc8 {[%emt 0:01:50]} 22. Nd2
{[%emt 0:05:37]} a4 {[%emt 0:02:27]} 23. Nc4 {[%emt 0:01:54] [#] aiming for
Nb6.} axb3 {[%emt 0:04:19]} 24. axb3 {[%emt 0:01:04]} ({Don't play} 24. Nb6 Qb7
25. Qxb3 (25. Nxc8 $2 b2 $19) 25... Be6 $17) 24... Qb7 {[%emt 0:06:15]
Prevents Nb6.} 25. Nd2 {[%emt 0:02:09]} Qd5 {[%emt 0:10:26]} 26. Rc4 {[%emt 0:
00:00]} Bd3 {[%emt 0:08:25]} 27. Rc3 {[%emt 0:00:54]} Ba6 {[%emt 0:00:43]} 28.
Rc1 {[%emt 0:00:26]} Bb7 {[%emt 0:06:33][%csl Gb7][%cal Rd5g2] [#]} 29. Nf3 {
[%emt 0:01:05]} f6 {[%emt 0:00:50]} 30. exf6 {[%emt 0:02:08]} exf6 {[%emt 0:00:
00]} 31. Qc3 {[%emt 0:01:34]} Qd7 {[%emt 0:17:58]} 32. Re1 {[%emt 0:01:11]} g5
{[%emt 0:01:04]} 33. Bg3 {[%emt 0:00:31]} h5 {[%emt 0:01:15]} 34. h4 {[%emt 0:
00:00]} (34. Nd2 {is more complex.} h4 35. Bh2 Qd5 36. Qc4) 34... g4 {[%emt 0:
00:00]} 35. Nd2 {[%emt 0:00:08][%cal Yf3d2,Yd2c4,Yc4e3]} Kh8 {[%emt 0:00:00]} (
35... Qd5 {keeps more tension.} 36. Qc4 Bf8 37. Rd1 Kh7) 36. Bf4 {[%emt 0:02:
06] The position is equal.} Qf5 {[%emt 0:01:33]} 37. Qg3 {[%emt 0:00:00]} Rd8 {
[%emt 0:00:53]} 38. Be3 {[%emt 0:00:26]} Bf8 {[%emt 0:02:31] Hoping for ...Bd6.
A strong pair of Bishops.} 39. Nc4 {[%emt 0:00:07] Prevents Bd6.} Ba8 {[%emt 0:
02:23]} 40. Bc1 {[%emt 0:01:15]} Kg8 {[%emt 0:00:30]} 41. Qc7 {[%emt 0:09:28]}
Qd5 {[%emt 0:02:51][%csl Ga8][%cal Rd5g2]} 42. Ne3 {[%emt 0:01:00] Active
counter play!} Qd6 {[%emt 0:02:06]} 43. Qxd6 {[%emt 0:00:00]} Rxd6 {[%emt 0:04:
31]} 44. Nc4 {[%emt 0:07:26]} Rd3 {[%emt 0:02:52]} 45. Re8 {[%emt 0:01:22] Bh6
is the strong threat.} Bc6 {[%emt 0:03:55]} 46. Rc8 {[%emt 0:00:47] Strongly
threatening Bh6.} Bd7 {[%emt 0:03:22]} 47. Rd8 {[%emt 0:00:19] And now Bh6
would win.} Bf5 {[%emt 0:00:22]} 48. Rxd3 {[%emt 0:00:00]} Bxd3 {[%emt 0:00:06]
} 49. Nb6 {[%emt 0:06:01]} Kf7 {[%emt 0:09:48]} 50. Nd7 {[%emt 0:00:44]} Bc2 {
[%emt 0:00:27]} 51. Nxf8 {[%emt 0:00:08]} Kxf8 {[%emt 0:00:04]} 52. Ba3 {
[%emt 0:00:05] An even fight not without its subleties. Weighted Error Value:
White=0.04 (flawless) /Black=0.04 (flawless)} 1/2-1/2

[Event "44th Chess Olympiad Open 2022"]
[Site "Chennai"]
[Date "2022.08.06"]
[Round "8.13"]
[White "Gretarsson, Helgi Ass"]
[Black "Ivanisevic, Ivan"]
[Result "1/2-1/2"]
[WhiteElo "2472"]
[BlackElo "2561"]
[Annotator "TA"]
[PlyCount "148"]
[EventDate "2022.??.??"]
[TimeControl "60"]

{[%evp 9,148,26,71,47,48,44,52,0,14,6,18,16,29,43,43,35,47,28,35,29,31,17,22,
16,31,22,24,0,0,0,0,0,0,0,0,0,35,0,0,0,7,0,0,0,0,0,18,0,31,31,121,0,-5,-12,10,
0,0,0,16,-100,-86,-94,-107,-385,-177,-194,-172,-384,-343,-633,-613,-567,-68,
-94,-75,-97,-106,-135,-135,-134,-131,-132,-141,-131,-141,-126,-129,-125,-74,
-76,-79,-75,-75,-84,-84,-84,-84,-138,-125,-149,-139,-147,-88,-88,-88,-86,0,-86,
-87,-89,-82,-82,-82,-82,-69,-69,-69,-69,-12,-13,-14,-13,-6,-6,-6,-6,-6,-22,-5,
-5,-5,-22,-5,-5,0,0,0,0,0,0,0]} 1. c4 {[%emt 0:00:03]} e5 {[%emt 0:00:30]} 2.
Nc3 {[%emt 0:00:05]} Nf6 {[%emt 0:00:55]} 3. Nf3 {[%emt 0:00:08]} Nc6 {[%emt 0:
00:00]} 4. e3 {[%emt 0:00:06]} d6 {[%emt 0:02:16]} 5. d4 {[%emt 0:02:32]} Bd7 {
[%emt 0:00:07]} 6. Be2 {[%emt 0:04:59] A28: English Opening: Four Knights
Variation.} g6 {[%emt 0:00:14]} 7. d5 {[%emt 0:09:15]} Ne7 {[%emt 0:00:52]} 8.
c5 {[%emt 0:00:27] White is slightly better.} Bg7 {[%emt 0:01:03]} 9. cxd6 {
[%emt 0:11:01]} cxd6 {[%emt 0:00:10]} 10. e4 {[%emt 0:00:02]} O-O {[%emt 0:00:
00][%cal Yb7b5]} 11. Nd2 {[%emt 0:00:08]} Ne8 {[%emt 0:10:44]} 12. a4 {[%emt 0:
00:00]} f5 {[%emt 0:00:29]} 13. Nc4 {[%emt 0:00:19]} fxe4 {[%emt 0:14:52]} 14.
Nxe4 {[%emt 0:00:17]} Nf5 {[%emt 0:00:06] [#]} 15. Bg5 $146 {[%emt 0:14:37]} ({
Predecessor:} 15. O-O Nd4 16. Be3 Bf5 17. Ng3 Rc8 18. Bxd4 exd4 19. Qb3 Rc7 20.
Nxf5 gxf5 {1-0 (39) Alburt,L (2570)-Shirazi,K (2455) Los Angeles 1987}) 15...
Qb8 {[%emt 0:01:50]} 16. O-O {[%emt 0:02:05]} Nf6 {[%emt 0:03:39]} 17. Bxf6 {
[%emt 0:17:28]} Bxf6 {[%emt 0:00:08]} 18. g4 {[%emt 0:00:06]} Nd4 {[%emt 0:00:
00]} 19. Ncxd6 {[%emt 0:00:07]} Be7 {[%emt 0:03:20]} 20. Nb5 {[%emt 0:00:49]}
Bxb5 {[%emt 0:00:52]} 21. axb5 {[%emt 0:00:32]} Rf4 {[%emt 0:00:12]} 22. f3 {
[%emt 0:01:59]} Bd8 {[%emt 0:02:00]} 23. Kg2 {[%emt 0:04:48]} Bb6 {[%emt 0:00:
00]} 24. Bd3 {[%emt 0:04:56]} Qf8 {[%emt 0:06:52]} 25. Ra4 {[%emt 0:00:19]} Kh8
{[%emt 0:02:55]} 26. Nc3 {[%emt 0:02:36]} Rd8 {[%emt 0:00:51]} 27. Be4 {
[%emt 0:00:27]} Qc5 {[%emt 0:13:10]} 28. Qd3 {[%emt 0:02:12]} Rc8 {[%emt 0:00:
00]} 29. Ne2 {[%emt 0:03:53]} Nc2 {[%emt 0:10:23]} 30. Kh3 {[%emt 0:02:19]} ({
White has to play} 30. Nxf4 $16 Ne3+ 31. Kh1 Nxf1 32. Nxg6+ (32. Qxf1 exf4 33.
Ra1 Kg7 $14) 32... hxg6 33. Qxf1) 30... Rff8 $11 {[%emt 0:01:58] Threatening ..
.Qe7.} 31. d6 {[%emt 0:04:21] Prevents Qe7. Black must now prevent d7.} ({
Of course not} 31. Rc1 Qf2 $1 32. Nc3 (32. Rxc2 Qf1+ 33. Kh4 g5+ 34. Kh5 Qh3+
35. Kxg5 Bd8#) 32... Ne1 $19) 31... Nd4 {[%emt 0:00:18]} 32. Nxd4 {[%emt 0:00:
00]} exd4 {[%emt 0:00:05]} 33. Bxb7 {[%emt 0:02:55]} Rcd8 {[%emt 0:00:22]} 34.
Qa3 {[%emt 0:00:41]} (34. Be4 $11 {remains equal.}) 34... Qxb5 $17 {[%emt 0:00:
00]} 35. Ba6 {[%emt 0:00:01]} Qe5 {[%emt 0:01:04]} 36. Bd3 $2 {[%emt 0:00:30]}
(36. Kg2 $17) 36... Rxd6 {[%emt 0:00:28]} (36... h5 $142 {aiming for ...hxg4+.}
37. Kg2 hxg4) 37. Kg2 $19 {[%emt 0:00:42]} Rdf6 {[%emt 0:00:46]} 38. Be4 $2 {
[%emt 0:00:37]} (38. Rxa7 Bxa7 39. Qxa7) 38... h5 {[%emt 0:00:31]} 39. gxh5 {
[%emt 0:00:37]} (39. Rc4 hxg4 40. Qd3) 39... gxh5 {[%emt 0:02:25] ( -> ...Rg8+)
} 40. Qd3 {[%emt 0:00:26]} Bc7 $2 {[%emt 0:00:40]} (40... Rf4 $1 $19 {[%cal
Rf4h4] Hoping for ...Rh4.} 41. Rf2 Rh4) 41. Rh1 {[%emt 0:02:17]} Qg5+ {[%emt 0:
06:31]} 42. Kf2 {[%emt 0:00:47]} Rg8 {[%emt 0:00:34] And now ...Qg2+ would win.
} 43. Ke1 {[%emt 0:00:23]} Qc1+ {[%emt 0:15:34]} 44. Qd1 {[%emt 0:00:00]} Qe3+
{[%emt 0:00:03]} 45. Qe2 {[%emt 0:00:20]} Bb6 $1 {[%emt 0:01:10]} ({Worse is} 
45... Qc1+ 46. Qd1 Qg5 47. Qd2 $17) 46. Kd1 {[%emt 0:12:22] [#] Prevents Qc1+.}
Rc8 $1 {[%emt 0:02:35][%csl Ge3][%cal Rc8c1]} ({Much weaker is} 46... Qb3+ $6
47. Qc2 Qxc2+ 48. Kxc2 $11) 47. Qxe3 {[%emt 0:00:48]} dxe3 {[%emt 0:00:05]} 48.
Ra3 {[%emt 0:01:38]} Rd8+ {[%emt 0:02:31]} (48... Rf7 $142 49. h4 Rd8+ 50. Rd3
Rxd3+ 51. Bxd3 Rxf3) 49. Rd3 $17 {[%emt 0:10:28]} Rxd3+ {[%emt 0:00:25]} 50.
Bxd3 {[%emt 0:00:01]} Rxf3 {[%emt 0:00:08] Endgame KRB-KRB} 51. h3 {[%emt 0:00:
49]} h4 {[%emt 0:01:40]} 52. Be2 {[%emt 0:00:00]} Rg3 {[%emt 0:00:35]} 53. Kc2
{[%emt 0:00:07]} ({White should try} 53. Bg4) 53... Kg7 {[%emt 0:00:16]} 54.
Kd3 {[%emt 0:00:46]} Kg6 {[%emt 0:01:44]} 55. b3 {[%emt 0:00:18] [#]} Kg5 {
[%emt 0:02:02]} (55... Rg2 $142 $1 56. Rf1 Rh2) 56. Ke4 {[%emt 0:03:01]} Rg2 {
[%emt 0:00:15]} 57. Bc4 {[%emt 0:00:40]} Rg3 {[%emt 0:01:33][%cal Ye3e2]} 58.
Be2 $1 {[%emt 0:00:08]} Kf6 {[%emt 0:00:13]} 59. Rf1+ {[%emt 0:00:39]} Ke7 {
[%emt 0:00:04]} 60. Bg4 {[%emt 0:01:02]} Rg2 {[%emt 0:00:29]} 61. Kd3 {[%emt 0:
01:33]} Rd2+ {[%emt 0:00:20]} 62. Kc3 $1 {[%emt 0:00:28]} Bd4+ {[%emt 0:01:41]}
63. Kc4 {[%emt 0:00:01]} Bf6 {[%emt 0:00:00]} ({Black should play} 63... Kd6
$15) 64. Rf4 $11 {[%emt 0:00:07] The position is equal.} Rc2+ {[%emt 0:01:02]}
65. Kd5 {[%emt 0:00:07]} Rc3 {[%emt 0:00:35]} 66. Ra4 {[%emt 0:00:41]} Rxb3 {
[%emt 0:00:37]} 67. Rxa7+ {[%emt 0:00:06]} Kf8 {[%emt 0:00:06]} 68. Ke6 {
[%emt 0:00:44]} Bd4 {[%emt 0:00:00]} 69. Rf7+ {[%emt 0:00:52]} Kg8 {[%emt 0:00:
08] ...Rb6+ is the strong threat.} 70. Rd7 {[%emt 0:00:28]} Bg7 {[%emt 0:01:05]
[%cal Ye3e2]} 71. Kf5 {[%emt 0:00:28]} Rb5+ {[%emt 0:00:30]} 72. Kg6 {[%emt 0:
00:31] White threatens Rd8+ and mate.} Rb6+ {[%emt 0:00:20]} 73. Kg5 {[%emt 0:
00:46]} Bf6+ {[%emt 0:00:00]} 74. Kf4 {[%emt 0:00:11]} Kf8 {[%emt 0:00:48]
Whites escaped into a draw. Weighted Error Value: White=0.30/Black=0.24 
(precise)} 1/2-1/2

[Event "44th Chess Olympiad Open 2022"]
[Site "Chennai"]
[Date "2022.08.06"]
[Round "8.14"]
[White "Banikas, Hristos"]
[Black "Bersamina, Paulo"]
[Result "1/2-1/2"]
[WhiteElo "2598"]
[BlackElo "2429"]
[Annotator "TA"]
[PlyCount "72"]
[EventDate "2022.??.??"]
[TimeControl "60"]

{[%evp 10,72,6,-25,11,-8,-14,-16,-23,-8,-15,4,-8,-65,-96,-80,15,16,13,0,0,0,9,
0,0,0,0,0,0,0,0,0,0,0,0,0,0,0,0,0,0,0,0,0,0,0,0,-2,-2,-3,0,0,0,0,0,0,0,0,0,0,0,
0,0,0,0]} 1. d4 {[%emt 0:00:05]} Nf6 {[%emt 0:00:08]} 2. c4 {[%emt 0:00:08]} g6
{[%emt 0:00:10]} 3. Nc3 {[%emt 0:00:11]} d5 {[%emt 0:02:57]} 4. Nf3 {[%emt 0:
00:00]} Bg7 {[%emt 0:00:14]} 5. e3 {[%emt 0:00:11]} O-O {[%emt 0:01:43]} 6. a3
{[%emt 0:11:16]} b6 {[%emt 0:06:52] [#] D94: Grünfeld: 4 Nf3 Bg7 5 e3.} (6...
c5 $5) 7. Bd2 $146 {[%emt 0:07:23]} ({Predecessor:} 7. Bd3 Bb7 8. O-O Nbd7 9.
b4 dxc4 10. Bxc4 c5 11. bxc5 bxc5 12. Rb1 cxd4 13. exd4 Nb6 14. Ba2 {0-1 (56)
Beytmashall,A (1728)-Ramezani,M (2156) Chess.com INT 2021}) 7... Bb7 {[%emt 0:
00:00]} 8. Qc2 {[%emt 0:10:56]} Nbd7 {[%emt 0:05:06]} 9. cxd5 {[%emt 0:09:42]}
Nxd5 {[%emt 0:00:11]} 10. Nxd5 {[%emt 0:00:16]} Bxd5 {[%emt 0:00:09]} 11. Ba6 {
[%emt 0:00:11]} (11. e4 $11 Bb7 12. Rd1) 11... Bxf3 $15 {[%emt 0:17:14]} 12.
gxf3 {[%emt 0:01:23]} e5 {[%emt 0:00:06]} (12... c5 $17) 13. dxe5 $11 {[%emt 0:
00:00] The position is equal.} Nxe5 {[%emt 0:03:03]} 14. O-O-O {[%emt 0:00:11]
Hoping for Bb4.} Qh4 {[%emt 0:03:40]} ({Resist} 14... Nxf3 15. Bb7 Nxd2 16.
Rxd2 $16) 15. f4 {[%emt 0:02:21]} Nd7 {[%emt 0:03:55]} 16. Bb4 {[%emt 0:07:42]}
Nc5 {[%emt 0:02:08]} 17. Bc4 {[%emt 0:00:16]} a5 {[%emt 0:03:04]} 18. Bxc5 {
[%emt 0:00:04]} bxc5 {[%emt 0:00:08]} 19. a4 $1 {[%emt 0:00:02]} Rfd8 {[%emt 0:
00:00]} (19... Rfb8 $5 20. b3 Rd8 $11) 20. Rxd8+ {[%emt 0:03:31]} Rxd8 {
[%emt 0:02:12]} 21. Rd1 {[%emt 0:00:17]} Rb8 {[%emt 0:14:07]} 22. b3 {[%emt 0:
00:00]} Qxh2 {[%emt 0:01:53]} 23. Rd2 {[%emt 0:00:06]} Rf8 {[%emt 0:04:59]} 24.
Qd1 {[%emt 0:03:04]} Qh4 {[%emt 0:00:26]} 25. Qf3 {[%emt 0:00:06]} Qf6 {
[%emt 0:03:24] [#] ...Qa1+ is the strong threat.} 26. Kd1 {[%emt 0:00:56][%cal
Yc1d1,Yd1e2,Ye2f1,Yf1g2] Active counter play!} Rd8 {[%emt 0:02:14]} 27. Rxd8+ {
[%emt 0:01:35]} Qxd8+ {[%emt 0:00:03] Endgame KQB-KQB} 28. Ke2 {[%emt 0:00:09]}
Bc3 {[%emt 0:00:19]} 29. Qc6 {[%emt 0:02:45]} Qd2+ {[%emt 0:01:39]} 30. Kf1 {
[%emt 0:00:24]} Qd1+ {[%emt 0:02:20]} 31. Kg2 {[%emt 0:00:05]} Qg4+ {[%emt 0:
00:04]} 32. Kf1 {[%emt 0:00:04]} Qd1+ {[%emt 0:00:00]} 33. Kg2 {[%emt 0:00:05]}
Kg7 {[%emt 0:01:23]} 34. Qxc7 {[%emt 0:01:20]} Qg4+ {[%emt 0:00:05]} 35. Kf1 {
[%emt 0:00:03]} Qd1+ {[%emt 0:01:29]} 36. Kg2 {[%emt 0:00:05]} Qg4+ {[%emt 0:
00:03] Weighted Error Value: White=0.06 (flawless) /Black=0.07 (flawless)}
1/2-1/2

[Event "44th Chess Olympiad Open 2022"]
[Site "Chennai"]
[Date "2022.08.06"]
[Round "8.14"]
[White "Theodorou, Nikolas"]
[Black "Barcenilla, Rogelio"]
[Result "1-0"]
[WhiteElo "2575"]
[BlackElo "2463"]
[Annotator "TA"]
[PlyCount "113"]
[EventDate "2022.??.??"]
[TimeControl "60"]

{[%evp 16,113,32,35,26,46,62,55,57,58,73,43,69,75,52,61,45,59,49,51,60,62,73,
32,40,29,27,35,37,39,35,30,34,29,37,41,33,37,39,16,26,11,58,44,44,44,46,50,42,
43,64,64,64,39,70,64,64,71,77,74,70,69,80,0,0,0,82,79,112,112,143,141,147,139,
136,140,187,185,259,252,349,319,572,591,593,557,830,712,29969,29969,29967,
29964,29986,29987,29985,29985,29985,29985,29985,29986]} 1. d4 {[%emt 0:00:07]}
Nf6 {[%emt 0:00:05]} 2. c4 {[%emt 0:00:08]} g6 {[%emt 0:00:05]} 3. Nf3 {
[%emt 0:00:25]} Bg7 {[%emt 0:00:05]} 4. g3 {[%emt 0:00:06]} O-O {[%emt 0:00:07]
} 5. Bg2 {[%emt 0:00:04]} d6 {[%emt 0:00:04]} 6. O-O {[%emt 0:00:10]} Nc6 {
[%emt 0:00:05]} 7. Nc3 {[%emt 0:00:09]} a6 {[%emt 0:00:06]} 8. b3 {[%emt 0:00:
00] 8.Bf4 is the modern continuation.} Rb8 {[%emt 0:00:13]} 9. d5 {[%emt 0:00:
00]} Na5 {[%emt 0:00:06] E63: King's Indian: Fianchetto: Panno Variation with
7...a6.} 10. Bg5 {[%emt 0:00:12]} b5 {[%emt 0:01:07]} 11. cxb5 {[%emt 0:00:22]}
axb5 {[%emt 0:00:05] White is slightly better.} 12. b4 $1 {[%emt 0:00:06]} c5 {
[%emt 0:00:13]} 13. bxa5 {[%emt 0:00:06] Hoping for a3.} Qxa5 {[%emt 0:00:06] 
[#]} 14. Rc1 $146 {[%emt 0:00:05]} ({Predecessor:} 14. Qc2 b4 15. Bxf6 Bxf6 16.
Ne4 Bg7 17. Rad1 Ra8 18. Rd2 h6 19. g4 Bxg4 20. e3 {½-½ (45) Nicula,M (2186)
-Dukic,Z (2226) Kingston 2022}) 14... b4 {[%emt 0:00:12]} 15. Bxf6 {[%emt 0:00:
00]} Bxf6 {[%emt 0:00:06]} 16. Ne4 {[%emt 0:00:03]} Bg7 {[%emt 0:00:07]} 17.
Rc2 {[%emt 0:01:05]} Qa7 {[%emt 0:04:53]} 18. Ned2 {[%emt 0:06:22]} Rb6 {
[%emt 0:00:22]} 19. Qb1 {[%emt 0:09:38]} (19. Nc4 $5 {[%cal Rc4b6]} Ra6 20. a3
$14) 19... Ra6 {[%emt 0:01:04]} 20. Rfc1 {[%emt 0:06:06]} Bd7 {[%emt 0:09:04]}
21. Bf1 {[%emt 0:00:36]} Ra8 {[%emt 0:03:39]} 22. e4 {[%emt 0:07:52]} Rxa2 {
[%emt 0:01:42]} 23. Rxa2 {[%emt 0:00:16]} Qxa2 {[%emt 0:00:06]} 24. Bc4 {
[%emt 0:08:13]} Qxb1 {[%emt 0:03:40]} 25. Rxb1 {[%emt 0:04:37]} Ra3 {[%emt 0:
00:00]} 26. Kg2 {[%emt 0:02:33]} Bc3 {[%emt 0:13:19][%cal Yg6g5]} 27. Nb3 {
[%emt 0:02:13]} f6 {[%emt 0:02:28]} 28. h3 {[%emt 0:18:06]} Ba4 {[%emt 0:02:05]
} (28... Kf7 $11) 29. Ng1 $14 {[%emt 0:02:21]} f5 {[%emt 0:03:41]} 30. exf5 {
[%emt 0:02:51]} gxf5 {[%emt 0:00:07]} 31. Ne2 {[%emt 0:00:21]} Bf6 {[%emt 0:00:
00]} 32. Nf4 {[%emt 0:00:37]} Bd7 {[%emt 0:03:20]} 33. Ne6 {[%emt 0:03:02]} Bc3
{[%emt 0:05:31]} 34. Rd1 {[%emt 0:15:50]} Kh8 {[%emt 0:04:10]} 35. g4 {[%emt 0:
00:00]} Ba4 {[%emt 0:14:41]} 36. Rb1 {[%emt 0:00:02]} fxg4 {[%emt 0:02:57]} 37.
hxg4 {[%emt 0:00:03]} h6 {[%emt 0:01:47]} 38. Kf3 {[%emt 0:03:26]} Be8 {
[%emt 0:05:18]} 39. Rh1 {[%emt 0:00:55]} (39. Ke2 $16) 39... Ba4 $1 $11 {
[%emt 0:00:12]} 40. Rb1 {[%emt 0:00:45]} ({White should try} 40. Nc1 $11) 40...
Be8 $1 $16 {[%emt 0:00:06] A strong pair of Bishops.} 41. Ke3 {[%emt 0:34:59]
White now steadily converts the win.} Ba4 {[%emt 0:36:24]} 42. f4 {[%emt 0:00:
00][%cal Yf2f4,Yf4g5]} Kg8 {[%emt 0:00:42]} 43. g5 {[%emt 0:00:00]} hxg5 {
[%emt 0:00:00]} 44. fxg5 {[%emt 0:00:00]} Be5 {[%emt 0:00:00]} 45. Ke4 {
[%emt 0:00:00][%cal Ye6c5]} Be8 {[%emt 0:00:00] [#]} (45... Bg7 $16 {keeps
fighting.} 46. Kf4 Be5+ 47. Kf5 Bg7 48. Nxg7 Kxg7) 46. Kf5 $1 $18 {[%emt 0:00:
00]} Ra2 {[%emt 0:00:00]} (46... Bg7 $142 47. Nexc5 dxc5) 47. Rf1 {[%emt 0:00:
00][%cal Yb3d4] And now Nbd4! would win.} Rc2 {[%emt 0:00:00]} 48. Bd3 {
[%emt 0:00:00]} Rc3 {[%emt 0:00:00] [#]} (48... Rg2 49. Nbxc5 Rg3) 49. Nbxc5 $1
{[%emt 0:00:00]} Bh5 {[%emt 0:00:00] [#]} 50. Be4 $1 {[%emt 0:00:00]} b3 {
[%emt 0:01:57]} (50... Re3 51. Nd7) 51. Nd3 {[%emt 0:00:55]} Be2 {[%emt 0:00:
00] [#]} 52. Rf2 $1 {[%emt 0:01:06] White mates.} Bxd3 {[%emt 0:06:44]} 53.
Bxd3 {[%emt 0:00:06]} b2 {[%emt 0:02:18] [#]} 54. Kg6 $1 {[%emt 0:01:06][%csl
Ge6][%cal Rf2f8]} Rc8 {[%emt 0:00:06]} 55. Rf1 {[%emt 0:00:23]} Rb8 {[%emt 0:
00:00]} 56. Bb1 {[%emt 0:01:09]} Rc8 {[%emt 0:00:07]} 57. Rf7 {[%emt 0:00:48]
Weighted Error Value: White=0.04 (flawless) /Black=0.34} 1-0

[Event "44th Chess Olympiad Open 2022"]
[Site "Chennai"]
[Date "2022.08.06"]
[Round "8.14"]
[White "Paragua, Mark"]
[Black "Mastrovasilis, Dimitrios"]
[Result "1/2-1/2"]
[WhiteElo "2461"]
[BlackElo "2599"]
[Annotator "TA"]
[PlyCount "60"]
[EventDate "2022.??.??"]
[TimeControl "60"]

{[%evp 16,60,0,-4,8,0,10,4,5,7,4,4,7,6,6,3,3,2,2,5,6,-6,-8,-9,-4,-13,0,0,0,0,0,
0,0,0,0,0,0,0,0,0,0,0,0,0,0,0,0]} 1. e4 {[%emt 0:00:04]} e5 {[%emt 0:00:09]} 2.
Nf3 {[%emt 0:00:05]} Nc6 {[%emt 0:00:10]} 3. Nc3 {[%emt 0:00:12]} Nf6 {[%emt 0:
00:00]} 4. d4 {[%emt 0:00:09]} exd4 {[%emt 0:00:25]} 5. Nxd4 {[%emt 0:00:07]}
Bb4 {[%emt 0:00:17]} 6. Nxc6 {[%emt 0:00:08]} bxc6 {[%emt 0:00:06]} 7. Bd3 {
[%emt 0:00:06][%cal Yf1d3,Yd3e4,Ye4c6]} d5 {[%emt 0:00:46]} 8. Bd2 {[%emt 0:00:
27]} O-O {[%emt 0:01:17]} 9. O-O {[%emt 0:00:06] The position is equal.} Bxc3 {
[%emt 0:01:06] C47: Scotch Four Knights and Four Knights with 4 g3.} (9... Bd6
{keeps more tension.} 10. Bg5 h6 11. Bxf6 Qxf6 12. exd5 cxd5 13. Nxd5 Qxb2 14.
Qe1 Be6) 10. Bxc3 {[%emt 0:00:12]} dxe4 $1 {[%emt 0:00:08] is more profitable
than 10...Nxe4 at the moment.} 11. Bxf6 {[%emt 0:00:04] [#] Remove Defender}
Qxf6 {[%emt 0:00:10]} 12. Bxe4 {[%emt 0:00:04]} Qxb2 {[%emt 0:00:11]} 13. Bxc6
{[%emt 0:00:04]} Rb8 {[%emt 0:00:10]} 14. Rb1 {[%emt 0:00:04]} Qxb1 {[%emt 0:
00:09]} 15. Qxb1 {[%emt 0:00:04]} Rxb1 {[%emt 0:00:00]} 16. Rxb1 $11 {[%emt 0:
00:03] Endgame KRB-KRB} Rd8 {[%emt 0:00:00]} 17. Bf3 {[%emt 0:00:08]} Kf8 {
[%emt 0:01:17] [#]} 18. Rb3 $146 {[%emt 0:07:46]} ({Predecessor:} 18. Rb8 Re8
19. h4 Ba6 20. Rb3 Re5 21. Rc3 Re7 22. Ra3 Re6 23. Bd5 Rb6 24. Bb3 {1-0 (64)
Karjakin,S (2743)-Vidit,S (2727) Wijk aan Zee 2022}) 18... Be6 {[%emt 0:22:58]}
19. Rb7 {[%emt 0:07:46]} c5 {[%emt 0:04:06]} 20. Rc7 {[%emt 0:40:09]} Bxa2 {
[%emt 0:13:00]} 21. Rxc5 {[%emt 0:04:32]} Be6 {[%emt 0:01:50]} 22. Ra5 {
[%emt 0:01:48]} Rd2 {[%emt 0:00:00]} 23. Rxa7 {[%emt 0:00:34]} Rxc2 {[%emt 0:
00:06] [#] ( -> ...Rc1+)} 24. h4 {[%emt 0:00:04]} g6 {[%emt 0:00:23]} 25. g3 {
[%emt 0:01:12]} Kg7 {[%emt 0:00:10]} 26. Kg2 {[%emt 0:00:11]} h5 {[%emt 0:00:
25]} 27. Ra6 {[%emt 0:00:18]} Rb2 {[%emt 0:00:36]} 28. Ra5 {[%emt 0:00:12]} Rb4
{[%emt 0:00:18]} 29. Rc5 {[%emt 0:00:00]} Rb2 {[%emt 0:00:08]} 30. Ra5 {
[%emt 0:00:06]} Rb4 {[%emt 0:00:06] An interesting draw. Weighted Error Value:
White=0.02 (flawless) /Black=0.03 (flawless)} 1/2-1/2